[Event "Fast Chess"]
[Site "ChessKid.com"]
[Date "2020.05.15"]
[Round "2"]
[White "Halimi, Dorian"]
[Black "Li, Tobias"]
[Result "1-0"]
[ECO "C50"]
[WhiteElo "1296"]
[BlackElo "1376"]
[Annotator "Abtauschkombinationen"]
[PlyCount "75"]
[EventDate "2020.??.??"]
[TimeControl "300+10"]
[WhiteClock "0:00:20"]
[BlackClock "0:01:26"]

1. e4 {[%emt 0:00:11]} e5 {[%emt 0:00:11]} 2. Nf3 {[%emt 0:00:10]} Nc6 {
[%emt 0:00:10]} 3. Bc4 {[%emt 0:00:12]} Bc5 {[%emt 0:00:10]} 4. d3 {[%emt 0:00:
13]} d6 {[%emt 0:00:12]} 5. h3 {[%emt 0:00:12]} h6 {[%emt 0:00:12]} 6. a3 {
[%emt 0:00:11]} Nf6 {[%emt 0:00:11]} 7. Nc3 {[%emt 0:00:16]} Be6 {[%emt 0:00:
23]} 8. Bxe6 {[%emt 0:00:14]} fxe6 {[%emt 0:00:11]} 9. O-O {[%emt 0:00:11]} g5
{[%emt 0:00:15]} 10. Be3 {[%emt 0:00:21]} Bxe3 {[%emt 0:00:11]} 11. fxe3 {
[%emt 0:00:10]} Qe7 {[%emt 0:00:10]} 12. g3 {[%emt 0:00:17]} O-O-O {[%emt 0:00:
11]} 13. h4 {[%emt 0:00:10]} gxh4 {[%emt 0:00:14]} 14. gxh4 {[%emt 0:00:16]}
Rhg8+ {[%emt 0:00:12]} 15. Kh1 {[%emt 0:00:15]} Ng4 {[%emt 0:00:19]} 16. Qe2 {
[%emt 0:00:21]} d5 {[%emt 0:00:27]} 17. exd5 {[%emt 0:00:12]} exd5 {[%emt 0:00:
13]} 18. e4 {[%emt 0:00:13]} dxe4 {[%emt 0:00:13]} 19. Nxe4 {[%emt 0:00:13]}
Nf6 {[%emt 0:00:32]} 20. Nxf6 {[%emt 0:00:14]} Qxf6 {[%emt 0:00:12]} 21. Rg1 {
[%emt 0:00:34]} Rxg1+ {[%emt 0:00:40]} 22. Rxg1 {[%emt 0:00:12]} Qe6 {[%emt 0:
00:15]} 23. h5 {[%emt 0:00:29]} Qh3+ {[%emt 0:00:17]} 24. Nh2 {[%emt 0:00:18]}
Nd4 {[%emt 0:00:39]} 25. Qd1 {[%emt 0:00:19]} Rf8 {[%emt 0:00:22]} 26. Qe1 {
[%emt 0:00:20]} Nf3 {[%emt 0:00:15]} 27. Qf2 {[%emt 0:00:20]} Rd8 $4 {[%emt 0:
00:31]} 28. Rg3 {[%emt 0:00:15]} Qxh5 $4 {[%emt 0:00:39]} 29. Rxf3 {[%emt 0:00:
14]} Rg8 {[%emt 0:00:34]} 30. Rg3 {[%emt 0:00:14]} Rd8 {[%emt 0:00:19]} 31. Kg1
{[%emt 0:00:15]} Qe8 {[%emt 0:00:19]} 32. Qf5+ {[%emt 0:00:27]} Kb8 {[%emt 0:
00:16]} 33. Ng4 {[%emt 0:00:21]} Qe7 {[%emt 0:00:12]} 34. Nxh6 {[%emt 0:00:15]}
Qc5+ {[%emt 0:00:11]} 35. Kg2 {[%emt 0:00:16]} Qxc2+ {[%emt 0:00:15]} 36. Kf3 {
[%emt 0:00:11]} Qxb2 {[%emt 0:00:10]} 37. Qg5 {[%emt 0:00:10]} Qxa3 {[%emt 0:
00:10]} 38. Qxd8# {[%emt 0:00:12] FullMagentaEclipse won by checkmate} 1-0

[Event "Fast Chess"]
[Site "ChessKid.com"]
[Date "2020.05.15"]
[Round "2"]
[White "Georgiev, Maximilian"]
[Black "Li, Patrick"]
[Result "0-1"]
[ECO "C50"]
[WhiteElo "1293"]
[BlackElo "1235"]
[Annotator "Ta2 ist sonderbar"]
[PlyCount "50"]
[EventDate "2020.??.??"]
[TimeControl "300+10"]
[WhiteClock "0:03:11"]
[BlackClock "0:03:26"]

1. e4 {[%emt 0:00:18]} e5 {[%emt 0:00:11]} 2. Nf3 {[%emt 0:00:15]} Nc6 {
[%emt 0:00:10]} 3. Bc4 {[%emt 0:00:11]} h6 {[%emt 0:00:12]} 4. O-O {[%emt 0:00:
11]} Bc5 {[%emt 0:00:14]} 5. h3 {[%emt 0:00:12]} Nf6 {[%emt 0:00:10]} 6. Nc3 {
[%emt 0:00:11]} d6 {[%emt 0:00:17]} 7. d3 {[%emt 0:00:11]} O-O {[%emt 0:00:15]}
8. Be3 {[%emt 0:00:11]} Bd4 {[%emt 0:00:14]} 9. a3 {[%emt 0:00:17]} Re8 {
[%emt 0:00:19]} 10. Ra2 $4 {[%emt 0:00:13]} Be6 {[%emt 0:00:20]} 11. Bb3 {
[%emt 0:00:15]} a6 {[%emt 0:00:17]} 12. Ne2 {[%emt 0:00:11]} d5 {[%emt 0:00:17]
} 13. exd5 {[%emt 0:00:12]} Bxd5 {[%emt 0:00:10]} 14. Bxd5 {[%emt 0:00:12]}
Qxd5 {[%emt 0:00:11]} 15. Bxd4 {[%emt 0:00:12]} Qxa2 {[%emt 0:00:17]} 16. Bc5 {
[%emt 0:00:13]} Qd5 {[%emt 0:00:15]} 17. b4 {[%emt 0:00:13]} b6 {[%emt 0:00:18]
} 18. Be3 {[%emt 0:00:11]} Red8 {[%emt 0:00:15]} 19. a4 {[%emt 0:00:19]} Nxb4 {
[%emt 0:00:14]} 20. Kh2 {[%emt 0:00:17]} Qd6 {[%emt 0:00:14]} 21. Nc3 {[%emt 0:
00:14]} e4+ {[%emt 0:00:12]} 22. Kg1 {[%emt 0:00:23]} exf3 {[%emt 0:00:12]} 23.
Qxf3 {[%emt 0:00:11]} Nxc2 {[%emt 0:00:16]} 24. Bd2 {[%emt 0:00:16]} Qxd3 {
[%emt 0:00:18]} 25. Qxd3 {[%emt 0:00:19]} Rxd3 {[%emt 0:00:10] WideClassyQuiz
won by resignation} 0-1

[Event "Fast Chess"]
[Site "ChessKid.com"]
[Date "2020.05.15"]
[Round "3"]
[White "Li, Patrick"]
[Black "Halimi, Dorian"]
[Result "0-1"]
[ECO "C55"]
[WhiteElo "1229"]
[BlackElo "1303"]
[Annotator "Linienöffnung"]
[PlyCount "36"]
[EventDate "2020.??.??"]
[TimeControl "300+10"]
[WhiteClock "0:03:18"]
[BlackClock "0:03:26"]

1. e4 {[%emt 0:00:13]} e5 {[%emt 0:00:25]} 2. Nf3 {[%emt 0:00:11]} Nc6 {
[%emt 0:00:11]} 3. Nc3 {[%emt 0:00:13]} Bc5 {[%emt 0:00:12]} 4. Bc4 {[%emt 0:
00:13]} Nf6 {[%emt 0:00:11]} 5. O-O {[%emt 0:00:14]} Ng4 {[%emt 0:00:16]} 6.
Ng5 {[%emt 0:00:15]} Qxg5 {[%emt 0:00:15]} 7. d4 {[%emt 0:00:15]} Qh4 {[%emt 0:
00:19]} 8. h3 {[%emt 0:00:15]} Bxd4 {[%emt 0:00:20]} 9. hxg4 {[%emt 0:00:13]}
Bxc3 {[%emt 0:00:19]} 10. bxc3 {[%emt 0:00:12]} d6 {[%emt 0:00:10]} 11. Qd5 {
[%emt 0:00:14]} Be6 {[%emt 0:00:18]} 12. Qd3 {[%emt 0:00:19]} Qxg4 {[%emt 0:00:
21]} 13. Bxe6 {[%emt 0:00:19]} Qxe6 {[%emt 0:00:12]} 14. Ba3 {[%emt 0:00:16]}
O-O-O {[%emt 0:00:17]} 15. Qg3 {[%emt 0:00:18]} d5 {[%emt 0:00:21]} 16. exd5 {
[%emt 0:00:15]} Qxd5 {[%emt 0:00:11]} 17. Qxg7 {[%emt 0:00:11]} Rhg8 {[%emt 0:
00:12]} 18. Qxh7 {[%emt 0:00:30]} Qxg2# {[%emt 0:00:12] FullMagentaEclipse won
by checkmate} 0-1

[Event "Fast Chess"]
[Site "ChessKid.com"]
[Date "2020.05.15"]
[Round "3"]
[White "Sasse, Gabriel"]
[Black "Li, Tobias"]
[Result "0-1"]
[ECO "C50"]
[WhiteElo "1344"]
[BlackElo "1384"]
[PlyCount "36"]
[EventDate "2020.??.??"]
[TimeControl "300+10"]
[WhiteClock "0:03:19"]
[BlackClock "0:04:22"]

1. e4 {[%emt 0:00:11]} e5 {[%emt 0:00:13]} 2. Nf3 {[%emt 0:00:10]} Nc6 {
[%emt 0:00:11]} 3. Bc4 {[%emt 0:00:10]} Bc5 {[%emt 0:00:12]} 4. Nc3 {[%emt 0:
00:11]} Nf6 {[%emt 0:00:12]} 5. h3 {[%emt 0:00:10]} d6 {[%emt 0:00:16]} 6. O-O
{[%emt 0:00:12]} h6 {[%emt 0:00:14]} 7. d3 {[%emt 0:00:11]} g5 {[%emt 0:00:14]}
8. a3 {[%emt 0:00:10]} g4 {[%emt 0:00:11]} 9. hxg4 {[%emt 0:00:12]} Bxg4 {
[%emt 0:00:11]} 10. b4 {[%emt 0:00:10]} Bd4 {[%emt 0:00:14]} 11. Be3 {[%emt 0:
00:19]} Bxc3 {[%emt 0:00:30]} 12. Rb1 {[%emt 0:00:11]} Bd4 {[%emt 0:00:11]} 13.
Bxd4 {[%emt 0:00:12]} Nxd4 {[%emt 0:00:12]} 14. c3 {[%emt 0:00:19]} Nxf3+ {
[%emt 0:00:23]} 15. gxf3 {[%emt 0:00:12]} Bd7 {[%emt 0:00:26]} 16. b5 {[%emt 0:
00:16]} Rg8+ {[%emt 0:00:17]} 17. Kh1 {[%emt 0:00:13]} Nxe4 {[%emt 0:00:16]}
18. fxe4 {[%emt 0:00:12]} Qh4# {[%emt 0:00:17] OnlyHungryKiwi won by checkmate}
0-1